Cogmind - Beta 16 @@@ ROGUE MODE // 2026.01.04 @ 19:08:26 Player: PE-P51 Result: Destroyed by LF-EEV(R) with Subdweller Laser Performance ------------- Evolutions (0) 0 Regions Visited (3) 600 Robots Destroyed (23) 115 Value Destroyed (531) 531 Prototype IDs (4) 80 Alien Tech Used (0) 0 Bonus (0) 0 TOTAL SCORE: 1326 Bonus ------- None Cogmind --------- Core Integrity 0/250 Matter 133/300 Energy 196/200 System Corruption 0% Temperature Cool (6) Movement Rolling (95) Location -10/Subcaves Parts ------- > --- POWER (1+1) ------ Subdweller Power Source > --- PROPULSION (2+1) - Wheel Subdweller Monowheel > --- UTILITY (2+1) ---- Makeshift Light Armor Plating Gun Armor Rainbow Chip (+) > --- WEAPON (2+3) ----- Subdweller Machine Gun Battle Cannon > --- INVENTORY (5) ---- Subdweller Laser Light Assault Rifle Battle Rifle Rocket Launcher Peak State ------------ > --- POWER ------------ Subdweller Power Source > --- PROPULSION ------- Makeshift Leg Wheel > --- UTILITY ---------- Makeshift Light Armor Plating Gun Armor Rainbow Chip > --- WEAPON ----------- Subdweller Machine Gun Battle Cannon > --- INVENTORY -------- Subdweller Power Source Subdweller Laser Light Assault Rifle Battle Rifle Rocket Launcher [Rating: 37] Favorites ----------- Power Subdweller Power Source Engine Subdweller Power Source Propulsion Flight Unit Leg Makeshift Leg Wheel Wheel Flight Unit Flight Unit Utility Rainbow Chip Device Subdweller Optics Storage Small Storage Unit Processor Rainbow Chip Hackware Makeshift System Shield Protection Scrap Shield Weapon Subdweller Laser Energy Gun Subdweller Laser Ballistic Gun Subdweller Machine Gun Ballistic Cannon Battle Cannon Launcher Rocket Launcher Build | -11 -10 -10 -10 ------- Run | Yrd Mat Min Sub Slots Evolved . | . . . . Power . | . . . . Propulsion . | . . . . Utility . | . . . . Weapon . | . . . . Parts Attached 32 | . 4 7 21 Power 7 | . 1 1 5 Engine 7 | . 1 1 5 Core . | . . . . Reactor . | . . . . Propulsion 11 | . 2 4 5 Treads . | . . . . Leg 1 | . . . 1 Wheel 2 | . . . 2 Hover . | . . . . Flight 8 | . 2 4 2 Utility 6 | . . . 6 Device 1 | . . . 1 Storage . | . . . . Processor 1 | . . . 1 Hackware 1 | . . . 1 Protection 3 | . . . 3 Artifact . | . . . . Weapon 8 | . 1 2 5 Energy Gun 2 | . . . 2 Energy Cannon . | . . . . Ballistic Gun 3 | . 1 1 1 Ballistic Cannon 2 | . . 1 1 Launcher 1 | . . . 1 Special Weapon . | . . . . Impact Weapon . | . . . . Slashing Weapon . | . . . . Piercing Weapon . | . . . . Special Melee Weapon . | . . . . Unidentified Prototypes 2 | . . . 2 Parts Lost 7 | . . . 7 Power 1 | . . . 1 Propulsion 4 | . . . 4 Utility 2 | . . . 2 Weapon . | . . . . Highest Loss Streak 2 | . . . 2 To Critical Strikes . | . . . . Average Backups 4 | . 5 4 4 Power . | . 1 1 . Propulsion . | . 3 2 . Utility . | . . . . Weapon 3 | . 1 1 3 Tool/Special . | . . . . Unused Backups 15 | . 8 3 4 Power . | . . . . Propulsion 9 | . 6 3 . Utility 1 | . 1 . . Weapon 5 | . 1 . 4 Tool/Special . | . . . . Average Slot Usage (%) 61 | . 68 64 60 Engine 10 | . 14 14 9 Leg 4 | . 11 . 5 Wheel 5 | . . . 7 Flight 9 | . 14 28 6 Processor 5 | . . . 7 Hackware 1 | . . . 1 Protection 5 | . . . 6 Energy Gun 7 | . 6 . 8 Ballistic Gun 4 | . 11 9 3 Ballistic Cannon 5 | . . 11 4 Peak Build Rating 37 | . 6 5 37 Average Rating 20 | . 4 4 24 On Entrance 5 | 6 6 4 5 Avg Prop Armor Cover (%) 4 | . . . 4 Naked Turns . | . . . . Heaviest Build 31 | 14 14 7 31 Greatest Support 30 | 20 20 8 30 Greatest Overweight (x) 3 | . . . 3 Average Overweight (x) . | . . . 1 Largest Inventory Capacity 8 | . 8 5 5 Average Capacity 5 | . 6 5 5 Most Carried 8 | . 8 5 5 Average Carried 4 | . 5 4 4 Final Capacity 8 | 8 5 5 5 Final Carried 6 | 6 4 5 4 Class Distribution -------------------- 47% | Mutant 39% | Subdweller-Mutant 12% | Scavenger-Mutant Dominant Class ---------------- Mutant | -10/Materials Scavenger-Mutant | -10/Mines Subdweller-Mutant | -10/Subcaves Resources | -11 -10 -10 -10 ----------- Run | Yrd Mat Min Sub Matter Collected 761 | 200 44 102 415 Remotely . | . . . . Salvage Created 554 | . 44 139 371 Parts 46 | . 6 7 33 Haulers Intercepted . | . . . . Recyclers Shooed 1 | . . 1 . Parts Field Recycled . | . . . . Retrieved Matter . | . . . . Parts Self-Destructed 19 | . . . 19 Prevented . | . . . . Parts Restored . | . . . . Kills | -11 -10 -10 -10 ------- Run | Yrd Mat Min Sub Combat Hostiles Destroyed 22 | . 3 3 16 Guns 17 | . 3 3 11 Cannons 2 | . . . 2 AOE 3 | . . . 3 Classes Destroyed 5 | . 1 1 3 Recycler 1 | . . 1 . Swarmer 12 | . 3 3 6 Sentry 1 | . . . 1 Artisan 1 | . . . 1 Subdweller 9 | . . . 9 Best Kill Streak 4 | . 3 4 3 Combat Bots Only 3 | . 3 3 3 Max Kills in Single Turn 4 | . 2 1 4 Gunslinging 1 | . 1 . . Exploded 3 | . . . 3 Melee . | . . . . Uniques/NPCs Destroyed . | . . . . Combat | -11 -10 -10 -10 -------- Run | Yrd Mat Min Sub Hostile Shots Fired 173 | . 24 24 125 Missed 79 | . 8 13 58 Hits 94 | . 16 11 67 Projectile 94 | . 16 11 67 Damage Taken 1476 | . 157 93 1226 Core 266 | . 42 35 189 Absorbed by Shields . | . . . . Core Remaining (%) 100 | 100 . . . Volleys Fired 127 | . 4 8 115 Largest 2 | . 2 1 2 Hottest 120 | . 60 20 120 Shots Fired 196 | . 7 8 181 Gun 134 | . 7 8 119 Cannon 61 | . . . 61 Launcher 1 | . . . 1 Special . | . . . . Kinetic 107 | . 4 8 95 Thermal 85 | . . . 85 Explosive 1 | . . . 1 Electromagnetic 3 | . 3 . . Robot Hit Streak 20 | . 3 4 20 Robot Miss Streak 3 | . 1 2 3 Penetration Max . | . . . . Secondary Targets 1 | . 1 . . Max Gunslinging Chain 1 | . 1 . . Shots Hit Robots 86 | . 3 5 78 Core Hits 31 | . 3 5 23 Critical Kills . | . . . . Critical Parts Destroyed . | . . . . Critical Strikes 2 | . . . 2 Blast 2 | . . . 2 Melee Attacks . | . . . . Impact . | . . . . Slashing . | . . . . Piercing . | . . . . Sneak Attacks . | . . . . Combat Hostiles . | . . . . Follow-up Attacks . | . . . . Damage Inflicted 1904 | . 37 77 1790 Guns 1229 | . 37 77 1115 Cannons 474 | . . . 474 Explosions 201 | . . . 201 Melee . | . . . . Ramming . | . . . . Kinetic 1019 | . 25 77 917 Thermal 672 | . . . 672 Explosive 201 | . . . 201 Electromagnetic 12 | . 12 . . Impact . | . . . . Slashing . | . . . . Piercing . | . . . . Highest Corruption . | . . . . Average Corruption . | . . . . Corruption Purged . | . . . . Corruption Blocked . | . . . . Overload Shots . | . . . . Overflow Damage . | . . . . Projectiles . | . . . . Explosions . | . . . . Melee . | . . . . Knockbacks 7 | . . . 7 Impact . | . . . . Kinetic 6 | . . . 6 Secondary 1 | . . . 1 Self-Inflicted Damage . | . . . . Shots . | . . . . Rammed . | . . . . Targets Rammed . | . . . . Kicked . | . . . . Crushed . | . . . . Highest Temperature 60 | . . . 60 Average Temperature 33 | . . . 33 Received Heat Transfer 231 | . 57 9 165 Siege Activations . | . . . . Martial Activations . | . . . . Shielding Activations . | . . . . Robots Disrupted . | . . . . Combat Hostiles . | . . . . Robots Corrupted . | . . . . Combat Hostiles . | . . . . Parts Fried . | . . . . Impact Corruptions . | . . . . Robots Melted . | . . . . Combat Hostiles . | . . . . Parts Melted . | . . . . Heat Transferred 825 | . . . 825 Parts Sabotaged . | . . . . Parts Stolen . | . . . . Parts Stripped . | . . . . Power Chain Reactions . | . . . . Alert | -11 -10 -10 -10 ------- Run | Yrd Mat Min Sub Maximum Alert Level . | . . . . Low Security (%) 100 | . 100 100 . Level 1 . | . . . . Level 2 . | . . . . Level 3 . | . . . . Level 4 . | . . . . Level 5 . | . . . . High Security . | . . . . Max Security . | . . . . Peak Influence 105 | . 70 105 . Initial 15 | . . 15 . Average 61 | . 40 70 . Influence Increases 550 | . 100 210 240 Destroy 0b10 Robot/C 260 | . 60 60 140 Destroy 0b10 Robot/NC 5 | . . 5 . Destroy Leader 30 | . 10 10 10 Select Force Hacks 30 | . 30 . . Partial Spotted 30 | . . 30 . Lose Combat Pursuer 195 | . . 105 90 Influence Decreases 550 | . 60 175 315 Entered New Map 64 | . . 25 39 Time Decay 446 | . 60 150 236 Lost Part 40 | . . . 40 Squads Dispatched 2 | . 2 . . Investigation 2 | . 2 . . Extermination . | . . . . Reinforcement . | . . . . Assault . | . . . . Garrison . | . . . . Intercept . | . . . . Searches Triggered . | . . . . Construction Impeded . | . . . . Haulers Reinforced . | . . . . Active Scanning Responses . | . . . . Cargo Convoy Interrupts . | . . . . Stealth | -11 -10 -10 -10 --------- Run | Yrd Mat Min Sub Distress Signals . | . . . . Communications Jammed . | . . . . Distress Signals . | . . . . Times Spotted 55 | . 15 10 30 Peak Tracking Total 12 | . 12 5 8 Tactical Retreats 7 | . . 2 5 Traps | -11 -10 -10 -10 ------- Run | Yrd Mat Min Sub Traps Triggered . | . . . . Indirectly . | . . . . Trap Hack Attempts . | . . . . Triggered . | . . . . Disarmed . | . . . . Reprogrammed . | . . . . Reused . | . . . . Traps Extracted . | . . . . Installed . | . . . . Triggered . | . . . . Machines | -11 -10 -10 -10 ---------- Run | Yrd Mat Min Sub Machines Disabled 1 | . . . 1 Max in Single Turn 1 | . . . 1 Machines Repaired . | . . . . Machines Dismantled . | . . . . Machines Sabotaged . | . . . . Overloaded Fab Kills . | . . . . Hacking | -11 -10 -10 -10 --------- Run | Yrd Mat Min Sub Machines Accessed 3 | . 3 . . Terminals 2 | . 2 . . Fabricators . | . . . . Repair Stations . | . . . . Recycling Units 1 | . 1 . . Scanalyzers . | . . . . Garrison Access . | . . . . Total Hacks 10 | . 10 . . Successful 4 | . 4 . . Failed 6 | . 6 . . Catastrophic 1 | . 1 . . Database Lockouts . | . . . . Manual 1 | . 1 . . Terminals 8 | . 8 . . Fabricators . | . . . . Repair Stations . | . . . . Recycling Units 2 | . 2 . . Scanalyzers . | . . . . Garrison Access . | . . . . Terminal Hacks 2 | . 2 . . Prototype ID Bank 1 | . 1 . . Alert Level 1 | . 1 . . Fabricator Hacks . | . . . . Repair Station Hacks . | . . . . Recycling Unit Hacks 1 | . 1 . . Retrieve Components 1 | . 1 . . Scanalyzer . | . . . . Garrison Access Hacks . | . . . . Unauthorized Hacks 1 | . 1 . . Terminals . | . . . . Fabricators . | . . . . Repair Stations . | . . . . Recycling Units 1 | . 1 . . Tunnel 1 | . 1 . . Scanalyzers . | . . . . Garrison Access . | . . . . Data Cores Recovered . | . . . . Used . | . . . . Hacking Detections 2 | . 2 . . Full Trace Events 1 | . 1 . . Feedback Events . | . . . . Feedback Blocked . | . . . . Robot Schematics Acquired . | . . . . Robots Built . | . . . . Authchips . | . . . . Time . | . . . . Total Robot Build Rating . | . . . . Part Schematics Acquired . | . . . . Parts Built . | . . . . Authchips . | . . . . Time . | . . . . Total Part Build Rating . | . . . . Part Studies Acquired . | . . . . Parts Repaired . | . . . . Time . | . . . . Parts Recycled . | . . . . Recycled Matter . | . . . . Retrieved Matter . | . . . . Retrieved Components 2 | . 2 . . Parts Scanalyzed . | . . . . Part Schematics Acquired . | . . . . Parts Damaged . | . . . . Bothacking | -11 -10 -10 -10 ------------ Run | Yrd Mat Min Sub Used RIF Installer . | . . . . Robots Hacked . | . . . . Non-combat . | . . . . Combat . | . . . . Robot Hacks Applied . | . . . . Relay Couplers Released . | . . . . Fabnet Peak Effective % . | . . . . Robots Rewired . | . . . . Allies Hacked . | . . . . Hacks Repelled . | . . . . Allies | -11 -10 -10 -10 -------- Run | Yrd Mat Min Sub Total Allies . | . . . . Largest Group . | . . . . Highest-Rated Group . | . . . . Highest-Rated Ally . | . . . . Total Orders . | . . . . Ally Attacks . | . . . . Total Damage . | . . . . Kills . | . . . . Allies Corrupted . | . . . . Allies Melted . | . . . . Intel | -11 -10 -10 -10 ------- Run | Yrd Mat Min Sub Active Infowar (turns) 29 | . . . 29 Optics 29 | . . . 29 Robot Analysis Total . | . . . . Derelict Logs Recovered 2 | . . 1 1 Drone Launches . | . . . . Drone Recoveries . | . . . . Exploration | -11 -10 -10 -10 ------------- Run | Yrd Mat Min Sub Turns Passed 2325 | . 141 312 1872 Spaces Moved 2836 | 1 223 727 1885 Core . | . . . . Treads . | . . . . Legs 39 | 1 38 . . Wheels 1084 | . . . 1084 Hover . | . . . . Flight 1713 | . 185 727 801 Fastest Speed 37 | 120 37 37 37 Average Speed 66 | 120 51 37 79 Slowest Speed 125 | 120 120 37 125 Overloaded Moves . | . . . . Propulsion Burnouts . | . . . . Robots Hopped 19 | . 6 5 8 Potential Cave-ins . | . . . . Cave-ins Triggered . | . . . . Exploration Rate (%) 53 | 2 38 99 74 Regions Visited 3 Branch Regions 2 Pre-discovered Areas 2 | . 1 . 1 Known Exits Taken . | . . . . Unknown Exits Taken 3 | 1 1 1 . Scrap Searched 6 | . . 1 5 Spaces Dug 4 | . . . 4 Terrain Destroyed 13 | . . . 13 Melee . | . . . . Projectile 5 | . . . 5 AOE 8 | . . . 8 Terrain Rammed . | . . . . Walls Destroyed . | . . . . Machines Disabled . | . . . . Actions | -11 -10 -10 -10 --------- Run | Yrd Mat Min Sub Total 3077 | . 242 761 2074 Wait 41 | . 1 10 30 Move 2796 | . 211 716 1869 Hop 18 | . 5 5 8 Pick Up 17 | . 4 5 8 Fast Attach 16 | . 1 2 13 Attach 10 | . 3 . 7 Detach 6 | . 4 . 2 Swap 8 | . . 5 3 Drop 31 | . 9 10 12 Fire 127 | . 4 8 115 Melee . | . . . . Ram . | . . . . Kick . | . . . . Crush . | . . . . Escape Stasis . | . . . . Rewire . | . . . . Trap . | . . . . Miscellaneous 7 | . . . 7 Route ------- -11/Scrapyard -10/Materials -10/Mines (discovered 3 exits: [*Mat x2] / [*Sub]) -10/Subcaves (discovered 3 exits: [*Mat x2] / [*Rec]) History --------- Turn | Location | Event 1 | -11/Scrapyard | Discovered new exit (range 0) 1 | -11/Scrapyard | Entered Materials 139 | -10/Materials | Discovered new exit (range 6) 142 | -10/Materials | Entered Mines 193 | -10/Mines | Met a Derelict bent on vengeance 249 | -10/Mines | Learned Materials security intel 288 | -10/Mines | Received a Rocket Launcher from a helpful Derelict 298 | -10/Mines | Discovered new exit (range 9) 350 | -10/Mines | Discovered new exit (range 16) 452 | -10/Mines | Discovered new exit (range 6) 454 | -10/Mines | Entered Subcaves 455 | -10/Subcaves | Approached by a straggling Scientist 462 | -10/Subcaves | Shifting Twisted Machinery released Sub. Monowheel 518 | -10/Subcaves | Discovered new exit (range 13) 601 | -10/Subcaves | Learned location of Zion (-7) 601 | -10/Subcaves | Discovered new exit (range 13) 654 | -10/Subcaves | Ambushed by Subdwellers from Twisted Machinery 730 | -10/Subcaves | Visited 4L-MR0's lab 743 | -10/Subcaves | Found Prototype Processor 743 | -10/Subcaves | Identified Rainbow Chip 745 | -10/Subcaves | Attached Rainbow Chip, gained temporary slots: Power, Propulsion, Utility, Weapon 752 | -10/Subcaves | Core integrity fell below 50% 890 | -10/Subcaves | Shifting Twisted Machinery released Battle Rifle 890 | -10/Subcaves | Discovered new exit (range 10) 894 | -10/Subcaves | Shifting Twisted Machinery released Sub. Laser 902 | -10/Subcaves | Shifting Twisted Machinery released Scrap Shield 906 | -10/Subcaves | Build established: Mutant 938 | -10/Subcaves | Shifting Twisted Machinery released Sub. Optics 1207 | -10/Subcaves | Build established: Subdweller-Mutant 1333 | -10/Subcaves | Disturbed a concealed Subdweller 1502 | -10/Subcaves | A swath of the cavern ceiling suddenly collapsed 1674 | -10/Subcaves | Core integrity fell below 20% 1803 | -10/Subcaves | A Subdweller sparked back to life 1803 | -10/Subcaves | A Subdweller sparked back to life 1803 | -10/Subcaves | A Subdweller sparked back to life 1872 | -10/Subcaves | Found Prototype Protection 1872 | -10/Subcaves | Identified Gun Armor 1874 | -10/Subcaves | Attached Gun Armor, gained temporary slots: Weapon x2 2141 | -10/Subcaves | Build established: Mutant 2161 | -10/Subcaves | Shifting Twisted Machinery released Mak. Light Armor Plating 2226 | -10/Subcaves | A swath of the cavern ceiling suddenly collapsed 2326 | -10/Subcaves | Destroyed by LF-EEV(R) with Subdweller Laser Last Messages --------------- 01893_ Acquired 2 matter. 01904_ Subatomizers dissect the Broken Sub. Power Source. 01914_ Acquired 1 matter. 01953_ Sub. Power Source shoots sparks and powers down. 01955_ Dropped Broken Sub. Power Source. 01965_ Acquired Broken Sub. Power Source. 01966_ Dropped Broken Sub. Power Source. 01968_ Acquired Sub. Power Source. 01976_ Acquired 2 matter. 02099_ Acquired 60 matter. 02100_ Acquired 12 matter. Mak. Light Armor Plating falls loose from the Twisted Machinery. 02182_ Acquired Mak. Light Armor Plating. 02186_ Dropped Mak. Leg. 02187_ Acquired Sub. Monowheel. A swath of the cavern ceiling suddenly collapses. 02276_ Sub. Power Source shoots sparks and powers down. 02279_ Dropped Broken Sub. Power Source. 02314_ 4O-TV8(R) destroyed. 02326_ LF-EEV(R) knocked back. Map ----- +----------------------------------------------------+ | ????????????????????????##"""#""#????????????????? | | ????????????????????????##""""""#????????????????? | | ?????????????????????????####""##????????????????? | | ?????????????????????????#"#"#########???????????? | | ?????????????????????????##"#""#"" ""##??????????? | | ?????????????????????????###""##" ##""#??????????? | | ??????????????????????????## ### ###"##??????????? | | ???????????????????????????#"##"###""##??????????? | | ???????????????????????????#"""##?##" ##?????????? | | ???????????????????????????# ###???#"#"##????????? | | ???????????????????????????#"#????#### #????????? | | ???????????????????????????# #????# # #?#??????? | | ???????????????????????????###????# *### #??????? | | ??????????????????????????????????# ## #??????? | | ?????????????????????????????####?# #??????? | | ????????????????????????????## ### #??????? | | ???????????????????????????## ## ## ? | | ???????????????????????????# #?## # # # #? | | ???????????????#?#?????????# ##?# ## ##?????? | | ??????????????? # ????????## ##### #? ##??????? | | ????????????????? ????????## ## # ##???????? | | ?????????????????## ?????#### ####????????? | | ???????????????###< ##?## ### #???????????? | | ?????????????### < ## #?## #???????????? | | ???????????# ##??## ##???????????? | | ???????????# @ ##????# #???????????? | | ????????????# #????? ##???????????? | | ????????????# ???? ????????????? | | ????????????## ### ?? # ????????????? | | ?????????????## ##??? ^ #?#????????????? | | ??????????????## ##????? ^#??????????????? | | ???????????????### ## ???????? #??????????????? | | ?????????????????## ?# ?????????#??????????????? | | ????????????????? ?? ????????????????????????? | | ???????????????? # ??##R ????????????????????????? | | ??????????????? ?#???? ????????????????????????? | | ??????????????????????% ????????????????????????? | | ?????????????????????" *?????????????????????????? | | ?????????????????????"=%?????????????????????????? | | ????????????????????? " ?????????????????????????? | | ???????????????????????"?????????????????????????? | | ?????????????????????????????????????????????????? | | ?????????????????????????????????????????????????? | | ?????????????????????????????????????????????????? | | ?????????????????????????????????????????????????? | | ?????????????????????????????????????????????????? | | ?????????????????????????????????????????????????? | | ?????????????????????????????????????????????????? | | ?????????????????????????????????????????????????? | | ?????????????????????????????????????????????????? | +----------------------------------------------------+ Best States ------------- Heat Dissipation 25 Energy Generation 15 Energy Capacity 250 Matter Stores 300 Matter Capacity 300 Sight Range 21 Terrain Scan Density 10 Armor Coverage 800 Evasion (%) 62 Defensive Hacking 11 Item Schematics ----------------- None Robot Schematics ------------------ None Fabricated ------------ Nothing Repaired ---------- Nothing Studied --------- None Alien Tech Used ----------------- None Achievements -------------- None Challenges ------------ None Game ------ Seed AblativeComponentMembrane Manual? 0 Play Time 00:22:08 Cumulative 262.5 hours Start 2026.01.04 @ 18:49:37 End 2026.01.04 @ 19:08:26 Sessions 1 Manual Loads 0 Difficulty Rogue Special Mode None Game No. 335 Rogue 334 Adventurer 1 Explorer 0 Win Type - Total 2 Types 1/0/0/1/0/0/0/0/0/0 Lore% 73 Gallery% 66 Achievement% 55 Wizard Run 0 Options --------- Layout 0 ASCII 0 Keyboard 0 Movement Numpad Keybinds 0 Fullscreen 1 Font 24/Smallcaps Map View 76x50 Zoom Use 0% Tactical HUD 1 Map Filters NONE Filters NONE Steam 1 RUN: 54ddba2b-708c-4f28-a2e0-2c0638665233